fUST/lending_fUST_20250128
["ID","MTS","AMOUNT","RATE_DAILY","PERIOD"]
[350655375,1738035033475,-500.0,0.00017478,2]
[350655377,1738035033484,-500.0,0.00017478,2]
[350655379,1738035033494,-500.0,0.00017478,2]
[350655381,1738035033503,-500.0,0.00017478,2]
[350655383,1738035033513,-500.0,0.00017478,2]
[350655385,1738035033522,-500.0,0.00017478,2]
[350655387,1738035033532,-500.0,0.00017478,2]
[350655389,1738035033542,-500.0,0.00017478,2]
[350655391,1738035033551,-500.0,0.00017478,2]
[350655393,1738035033561,-500.0,0.00017478,2]
[350655395,1738035033570,-500.0,0.00017478,2]
[350655397,1738035033580,-500.0,0.00017478,2]
[350655399,1738035033589,-500.0,0.00017478,2]
[350655401,1738035033598,-500.0,0.00017478,2]
[350655403,1738035033607,-500.0,0.00017478,2]
[350655404,1738035033617,-500.0,0.00017478,2]
[350655406,1738035033627,-500.0,0.00017478,2]
[350655408,1738035033636,-500.0,0.00017478,2]
[350655410,1738035033646,-500.0,0.00017478,2]
[350655412,1738035033655,-598.6652626,0.00017478,2]
[350655413,1738035033665,-500.0,0.00017478,2]
[350655415,1738035033674,-500.0,0.00017478,2]
[350655417,1738035033683,-500.0,0.00017478,2]
[350655419,1738035033692,-500.0,0.00017478,2]
[350655421,1738035033701,-500.0,0.00017478,2]
[350655423,1738035033711,-500.0,0.00017478,2]
[350655424,1738035033721,-500.0,0.00017478,2]
[350655426,1738035033730,-500.0,0.00017478,2]
[350655428,1738035033739,-500.0,0.00017478,2]
[350655430,1738035033749,-500.0,0.00017478,2]
[350655431,1738035033758,-500.0,0.00017478,2]
[350655433,1738035033768,-500.0,0.00017478,2]
[350655435,1738035033777,-500.0,0.00017478,2]
[350655437,1738035033786,-500.0,0.00017478,2]
[350655438,1738035033796,-500.0,0.00017478,2]
[350655440,1738035033805,-500.0,0.00017478,2]
[350655441,1738035033815,-500.0,0.00017478,2]
[350655442,1738035033824,-500.0,0.00017478,2]
[350655443,1738035033837,-500.0,0.00017478,2]
[350655444,1738035033846,-500.0,0.00017478,2]
[350655445,1738035033855,-500.0,0.00017478,2]
[350655446,1738035033865,-500.0,0.00017478,2]
[350655447,1738035033875,-500.0,0.00017478,2]
[350655448,1738035033884,-500.0,0.00017478,2]
[350655449,1738035033894,-500.0,0.00017478,2]
[350655450,1738035033903,-650.0,0.00017478,2]
[350655451,1738035033914,-500.0,0.00017478,2]
[350655452,1738035033923,-500.0,0.00017478,2]
[350655453,1738035033933,-500.0,0.00017478,2]
[350655454,1738035033942,-500.0,0.00017478,2]
[350655455,1738035033951,-500.0,0.00017478,2]
[350655456,1738035033961,-500.0,0.00017478,2]
[350655457,1738035033971,-500.0,0.00017478,2]
[350655458,1738035033980,-500.0,0.00017478,2]
[350655459,1738035033989,-500.0,0.00017478,2]
[350655460,1738035033999,-500.0,0.00017478,2]
[350655461,1738035034009,-500.0,0.00017478,2]
[350655462,1738035034018,-515.93808245,0.00017478,2]
[350655463,1738035034028,-562.67,0.00017478,2]
[350655464,1738035034037,-500.0,0.00017478,2]
[350655465,1738035034047,-507.91885976,0.00017478,2]
[350655466,1738035034056,-507.7661887,0.00017478,2]
[350655467,1738035034065,-375.55530142,0.00017478,2]
[350655468,1738035034075,-500.0,0.00017479,2]
[350655469,1738035034084,-500.0,0.00017479,2]
[350655470,1738035034093,-500.0,0.00017479,2]
[350655471,1738035034103,-500.0,0.00017479,2]
[350655472,1738035034112,-500.0,0.00017479,2]
[350655473,1738035034121,-500.0,0.00017479,2]
[350655474,1738035034130,-500.0,0.00017479,2]
[350655475,1738035034140,-500.0,0.00017479,2]
[350655476,1738035034149,-500.0,0.00017479,2]
[350655477,1738035034158,-500.0,0.00017479,2]
[350655478,1738035034168,-500.0,0.00017479,2]
[350655479,1738035034177,-500.0,0.00017479,2]
[350655480,1738035034186,-500.0,0.00017479,2]
[350655481,1738035034196,-513.61,0.00017479,2]
[350655482,1738035034206,-500.0,0.00017479,2]
[350655483,1738035034216,-513.61,0.00017479,2]
[350655484,1738035034227,-513.61,0.00017479,2]
[350655485,1738035034237,-513.61,0.00017479,2]
[350655486,1738035034247,-500.0,0.00017479,2]
[350655487,1738035034256,-529.78354431,0.00017479,2]
[350655488,1738035034266,-507.83850901,0.00017479,2]
[350655489,1738035034276,-526.76222107,0.00017479,2]
[350655490,1738035034285,-509.61059942,0.00017479,2]
[350655491,1738035034294,-500.0,0.00017479,2]
[350655492,1738035034304,-510.10861634,0.00017479,2]
[350655493,1738035034313,-500.0,0.00017479,2]
[350655494,1738035034323,-504.76130007,0.00017479,2]
[350655495,1738035034332,-500.0,0.00017479,2]
[350655496,1738035034342,-506.67149873,0.00017479,2]
[350655497,1738035034352,-500.0,0.00017479,2]
[350655498,1738035034362,-510.83390633,0.00017479,2]
[350655499,1738035034372,-506.61203377,0.00017479,2]
[350655500,1738035034381,-500.0,0.00017479,2]
[350655501,1738035034391,-508.26274069,0.00017479,2]
[350655502,1738035034400,-385.79492449,0.00017479,2]
[350655503,1738035034531,-114.20507551,0.00017479,2]
[350655504,1738035034541,-500.0,0.00017479,2]
[350655505,1738035034551,-500.0,0.00017479,2]
[350655506,1738035034560,-140.48779638,0.00017479,2]
[350655507,1738035034589,-804.38220362,0.00017479,2]
[350655508,1738035034598,-1526.78660216,0.00017479,2]
[350655521,1738035038603,-510.4095393,0.0001648,2]
[350655522,1738035038612,-881.29339784,0.00017479,2]
[350655523,1738035038621,-500.0,0.00017479,2]
[350655524,1738035038631,-510.73974402,0.00017479,2]
[350655525,1738035038640,-516.92843078,0.00017479,2]
[350655526,1738035038649,-500.0,0.00017479,2]
[350655527,1738035038658,-864.25,0.00017479,2]
[350655528,1738035038668,-500.0,0.0001748,2]
[350655529,1738035038677,-500.0,0.0001748,2]
[350655530,1738035038687,-504.04305189,0.0001748,2]
[350655531,1738035038696,-503.03685126,0.0001748,2]
[350655532,1738035038704,-500.0,0.0001748,2]
[350655533,1738035038714,-503.46899069,0.0001748,2]
[350655534,1738035038723,-500.0,0.0001748,2]
[350655535,1738035038732,-500.0,0.0001748,2]
[350655536,1738035038741,-500.0,0.0001748,2]
[350655537,1738035038750,-500.0,0.0001748,2]
[350655538,1738035038759,-6.33238504,0.0001748,2]
[350655539,1738035038771,-493.66761496,0.0001748,2]
[350655540,1738035038780,-500.0,0.0001748,2]
[350655541,1738035038789,-510.77592525,0.0001748,2]
[350655542,1738035038809,-48.30610793,0.0001748,2]
[350655543,1738035038818,-483.65429421,0.0001748,2]
[350655544,1738035038837,-16.34570579,0.0001748,2]
[350655545,1738035038846,-261.12284286,0.0001748,2]
[350655546,1738035038863,-238.87715714,0.0001748,2]
[350655547,1738035038872,-500.0,0.0001748,2]
[350655548,1738035038881,-500.0,0.0001748,2]
[350655549,1738035038890,-500.0,0.0001748,2]
[350655550,1738035038899,-500.0,0.0001748,2]
[350655551,1738035038909,-500.0,0.0001748,2]
[350655552,1738035038918,-503.34869977,0.0001748,2]
[350655553,1738035038927,-405.20630531,0.0001748,2]
[350655554,1738035038946,-94.79369469,0.0001748,2]
[350655555,1738035038955,-500.0,0.0001748,2]
[350655556,1738035038964,-500.0,0.0001748,2]
[350655557,1738035038974,-250.93223229,0.0001748,2]
[350655558,1738035038986,-249.06776771,0.0001748,2]
[350655559,1738035038996,-500.0,0.0001748,2]
[350655560,1738035039005,-514.44391393,0.0001748,2]
[350655561,1738035039014,-49.05594346,0.0001748,2]
[350655574,1738035040840,-506.91934526,0.0001648,2]
[350655575,1738035040850,-450.94405654,0.0001748,2]
[350655576,1738035040859,-500.0,0.0001748,2]
[350655577,1738035040870,-500.0,0.0001748,2]
[350655578,1738035040879,-500.0,0.0001748,2]
[350655579,1738035040889,-500.0,0.0001748,2]
[350655580,1738035040898,-500.0,0.0001748,2]
[350655581,1738035040910,-500.0,0.0001748,2]
[350655582,1738035040920,-500.0,0.0001748,2]
[350655583,1738035040929,-500.0,0.0001748,2]
[350655584,1738035040939,-511.52375448,0.0001748,2]
[350655585,1738035040948,-512.55693462,0.0001748,2]
[350655586,1738035040958,-507.87858283,0.0001748,2]
[350655587,1738035040968,-515.96219541,0.0001748,2]
[350655588,1738035040978,-500.0,0.0001748,2]
[350655589,1738035041084,-372.36604059,0.0001748,2]
[350655590,1738035041096,-509.39892049,0.0001748,2]
[350655591,1738035041105,-502.69108418,0.0001748,2]
[350655592,1738035041114,-487.99849591,0.0001748,2]
[350655593,1738035041123,-506.39262368,0.0001748,2]
[350655594,1738035041132,-500.0,0.0001748,2]
[350655595,1738035041142,-509.11921415,0.0001748,2]
[350655596,1738035041151,-505.24837621,0.0001748,2]
[350655597,1738035041160,-505.23648896,0.0001748,2]
[350655598,1738035041170,-506.61853417,0.0001748,2]
[350655599,1738035041179,-510.41908654,0.0001748,2]
[350655600,1738035041188,-505.62911672,0.0001748,2]
[350655601,1738035041197,-506.46905238,0.0001748,2]
[350655602,1738035041206,-512.46061343,0.0001748,2]
[350655603,1738035041216,-509.88046329,0.0001748,2]
[350655604,1738035041225,-508.32934745,0.0001748,2]
[350655605,1738035041234,-512.7187502,0.0001748,2]
[350655606,1738035041244,-505.37191104,0.0001748,2]
[350655607,1738035041254,-503.18266289,0.0001748,2]
[350655608,1738035041263,-506.42098957,0.0001748,2]
[350655609,1738035041273,-333.18078445,0.0001748,2]
[350655610,1738035041282,-504.5097825,0.0001748,2]
[350655611,1738035041291,-259.97067657,0.0001748,2]
[350655612,1738035041300,-511.65798338,0.0001748,2]
[350655613,1738035041310,-505.86734102,0.0001748,2]
[350655614,1738035041319,-510.80358895,0.0001748,2]
[350655615,1738035041328,-514.31911358,0.0001748,2]
[350655616,1738035041337,-506.58122246,0.0001748,2]
[350655617,1738035041346,-508.67885961,0.0001748,2]
[350655618,1738035041356,-505.69406436,0.0001748,2]
[350655619,1738035041365,-508.0599388,0.0001748,2]
[350655620,1738035041374,-506.40322106,0.0001748,2]
[350655621,1738035041383,-511.64782178,0.0001748,2]
[350655622,1738035041393,-507.54803431,0.0001748,2]
[350655623,1738035041402,-517.36073666,0.0001748,2]
[350655624,1738035041411,-510.1263961,0.0001748,2]
[350655625,1738035041421,-513.61,0.0001748,2]
[350655626,1738035041430,-513.61,0.0001748,2]
[350655627,1738035041439,-510.95215057,0.0001748,2]
[350655628,1738035041449,-500.0,0.0001748,2]
[350655629,1738035041458,-500.0,0.0001748,2]
[350655630,1738035041467,-506.80771514,0.0001748,2]
[350655631,1738035041478,-500.0,0.0001748,2]
[350655632,1738035041487,-500.0,0.0001748,2]
[350655633,1738035041497,-500.0,0.0001748,2]
[350655634,1738035041507,-504.14371967,0.0001748,2]
[350655635,1738035041516,-500.0,0.0001748,2]
[350655636,1738035041526,-196.05640503,0.0001748,2]
[350655637,1738035041536,-579.43351082,0.0001748,2]
[350655638,1738035041545,-500.0,0.0001748,2]
[350655639,1738035041554,-500.0,0.0001748,2]
[350655640,1738035041563,-500.0,0.0001748,2]
[350655641,1738035041572,-503.95085173,0.0001748,2]
[350655642,1738035041583,-500.0,0.0001748,2]
[350655643,1738035041592,-368.54046049,0.0001748,2]
[350655644,1738035041604,-167.58953951,0.0001748,2]
[350655645,1738035041613,-546.89,0.0001748,2]
[350655646,1738035041622,-500.0,0.0001748,2]
[350655647,1738035041632,-503.80093874,0.00017481,2]
[350655648,1738035041641,-507.30881141,0.00017481,2]
[350655649,1738035041650,-504.16768656,0.00017481,2]
[350655650,1738035041659,-504.06376285,0.00017481,2]
[350655651,1738035041668,-504.65215222,0.00017481,2]
[350655652,1738035041677,-510.98026897,0.00017481,2]
[350655653,1738035041687,-508.03490963,0.00017481,2]
[350655654,1738035041695,-508.4397209,0.00017481,2]
[350655655,1738035041704,-506.37565103,0.00017481,2]
[350655656,1738035041713,-514.36129855,0.00017481,2]
[350655657,1738035041723,-494.86190033,0.00017481,2]
[350655658,1738035041732,-511.29284698,0.00017481,2]
[350655659,1738035041741,-202.50025757,0.00017481,2]
[350655660,1738035041750,-502.82865775,0.00017481,2]
[350655661,1738035041759,-504.50632288,0.00017481,2]
[350655662,1738035041768,-509.16724833,0.00017481,2]
[350655663,1738035041778,-511.90739099,0.00017481,2]
[350655664,1738035041787,-646.79735815,0.00017481,2]
[350655665,1738035041796,-506.98291541,0.00017481,2]
[350655666,1738035041805,-511.71463635,0.00017481,2]
[350655667,1738035041814,-505.37485764,0.00017481,2]
[350655668,1738035041824,-490.2042961,0.00017481,2]
[350655669,1738035041838,-511.79650457,0.00017481,2]
[350655670,1738035041847,-507.12173525,0.00017481,2]
[350655671,1738035041857,-508.22450242,0.00017481,2]
[350655672,1738035041866,-508.32766185,0.00017481,2]
[350655673,1738035041876,-518.91373729,0.00017481,2]
[350655674,1738035041885,-500.0,0.00017481,2]
[350655675,1738035041894,-505.29631116,0.00017481,2]
[350655676,1738035041904,-511.92829638,0.00017481,2]
[350655677,1738035041914,-510.22388586,0.00017481,2]
[350655678,1738035041923,-506.86594292,0.00017481,2]
[350655679,1738035041931,-514.88021,0.00017481,2]
[350655680,1738035041941,-506.20603404,0.00017481,2]
[350655681,1738035041950,-500.0,0.00017481,2]
[350655682,1738035041960,-504.59590119,0.00017481,2]
[350655683,1738035041969,-505.12652186,0.00017481,2]
[350655684,1738035041978,-507.11238265,0.00017481,2]
[350655685,1738035041988,-505.04106807,0.00017481,2]
[350655686,1738035041997,-253.27152395,0.00017481,2]
[350655687,1738035042006,-509.43499841,0.00017481,2]
[350655688,1738035042015,-500.0,0.00017481,2]
[350655689,1738035042024,-500.0,0.00017481,2]
[350655690,1738035042033,-402.50338302,0.00017481,2]
[350655691,1738035042042,-500.0,0.00017481,2]
[350655692,1738035042051,-500.0,0.00017481,2]
[350655693,1738035042060,-467.80254981,0.00017481,2]
[350655694,1738035042069,-500.0,0.00017481,2]
[350655695,1738035042079,-500.0,0.00017481,2]
[350655696,1738035042088,-504.00560826,0.00017481,2]
[350655697,1738035042097,-500.0,0.00017481,2]
[350655698,1738035042106,-500.0,0.00017481,2]
[350655699,1738035042115,-500.0,0.00017481,2]
[350655700,1738035042124,-500.0,0.00017481,2]
[350655701,1738035042132,-505.52929348,0.00017481,2]
[350655702,1738035042142,-500.0,0.00017481,2]
[350655703,1738035042152,-510.65523057,0.00017481,2]
[350655704,1738035042161,-500.0,0.00017481,2]
[350655705,1738035042170,-3788.0,0.00017481,14]
[350655706,1738035042181,-500.0,0.00017481,2]
[350655707,1738035042191,-500.0,0.00017481,2]
[350655708,1738035042200,-500.0,0.00017481,2]
[350655709,1738035042209,-532.2712077,0.00017481,2]
[350655710,1738035042219,-509.39283924,0.00017481,2]
[350655711,1738035042229,-505.35263534,0.00017481,2]
[350655712,1738035042238,-510.09154878,0.00017481,2]
[350655713,1738035042247,-503.61028584,0.00017481,2]
[350655714,1738035042255,-502.79159543,0.00017481,2]
[350655715,1738035042265,-508.5824085,0.00017481,2]
[350655716,1738035042275,-500.89980614,0.00017481,2]
[350655717,1738035042284,-506.02466799,0.00017481,2]
[350655718,1738035042293,-512.17941325,0.00017481,2]
[350655719,1738035042302,-509.93194112,0.00017481,2]
[350655720,1738035042311,-508.46179843,0.00017481,2]
[350655721,1738035042320,-500.0,0.00017481,2]
[350655722,1738035042330,-514.097545,0.00017481,2]
[350655723,1738035042339,-513.61,0.00017481,2]
[350655724,1738035042348,-513.61,0.00017481,2]
[350655725,1738035042358,-500.0,0.00017481,2]
[350655726,1738035042367,-506.90244216,0.00017481,2]
[350655727,1738035042376,-508.84188047,0.00017481,2]
[350655728,1738035042386,-606.38716963,0.00017481,2]
[350655729,1738035042395,-486.8913136,0.00017481,2]
[350655730,1738035042405,-508.78166268,0.00017481,2]
[350655731,1738035042414,-504.91282609,0.00017481,2]
[350655732,1738035042424,-574.24798595,0.00017481,2]
[350655733,1738035042434,-500.0,0.00017481,2]
[350655734,1738035042443,-500.0,0.00017481,2]
[350655735,1738035042452,-523.22606428,0.00017481,2]
[350655736,1738035042462,-518.16353269,0.00017481,2]
[350655737,1738035042471,-500.0,0.00017481,2]
[350655738,1738035042481,-504.90802481,0.00017481,2]
[350655739,1738035042490,-507.67329707,0.00017481,2]
[350655740,1738035042500,-500.0,0.00017481,2]
[350655741,1738035042510,-508.94734604,0.00017481,2]
[350655742,1738035042519,-505.97944095,0.00017481,2]
[350655743,1738035042529,-151.0,0.00017481,2]
[350655744,1738035042538,-509.07821375,0.00017481,2]
[350655745,1738035042548,-151.0,0.00017481,2]
[350655746,1738035042557,-151.0,0.00017481,2]
[350655747,1738035042567,-151.0,0.00017481,2]
[350655748,1738035042576,-500.0,0.00017576,2]
[350655749,1738035042585,-500.0,0.00017576,2]
[350655750,1738035042594,-153.0,0.00017578,2]
[350655751,1738035042603,-153.0,0.00017578,2]
[350655752,1738035042612,-153.0,0.00017578,2]
[350655753,1738035042621,-153.0,0.00017578,2]
[350655754,1738035042630,-153.0,0.00017578,2]
[350655755,1738035042640,-153.0,0.00017578,2]
[350655756,1738035042648,-153.0,0.00017578,2]
[350655757,1738035042658,-153.0,0.00017578,2]
[350655758,1738035042667,-153.0,0.00017578,2]
[350655759,1738035042676,-153.0,0.00017578,2]
[350655760,1738035042685,-153.0,0.00017578,2]
[350655761,1738035042695,-153.0,0.00017578,2]
[350655762,1738035042704,-153.0,0.00017578,2]
[350655763,1738035042714,-153.0,0.00017578,2]
[350655764,1738035042723,-153.0,0.00017578,2]
[350655765,1738035042733,-153.0,0.00017578,2]
[350655766,1738035042742,-153.0,0.00017578,2]
[350655767,1738035042751,-153.0,0.00017582,2]
[350655768,1738035042762,-153.0,0.00017582,2]
[350655769,1738035042771,-153.0,0.00017582,2]
[350655770,1738035042781,-153.0,0.00017582,2]
[350655771,1738035042790,-153.0,0.00017582,2]
[350655772,1738035042800,-153.0,0.00017582,2]
[350655773,1738035042809,-153.0,0.00017582,2]
[350655774,1738035042819,-153.0,0.00017582,2]
[350655775,1738035042832,-153.0,0.00017582,2]
[350655776,1738035042841,-153.0,0.00017582,2]
[350655777,1738035042851,-153.0,0.00017582,2]
[350655778,1738035042860,-153.0,0.00017582,2]
[350655779,1738035042870,-153.0,0.00017582,2]
[350655780,1738035042880,-153.0,0.00017582,2]
[350655781,1738035042889,-153.0,0.00017582,2]
[350655782,1738035042899,-153.0,0.00017582,2]
[350655783,1738035042910,-153.0,0.00017586,2]
[350655784,1738035042919,-153.0,0.00017586,2]
[350655785,1738035042928,-153.0,0.00017586,2]
[350655786,1738035042937,-153.0,0.00017586,2]
[350655787,1738035042946,-153.0,0.00017586,2]
[350655788,1738035042955,-153.0,0.00017586,2]
[350655789,1738035042964,-153.0,0.00017586,2]
[350655790,1738035042972,-153.0,0.00017587,2]
[350655791,1738035042982,-153.0,0.00017587,2]
[350655792,1738035042990,-153.0,0.00017587,2]
[350655793,1738035042999,-153.0,0.00017587,2]
[350655794,1738035043008,-153.0,0.00017587,2]
[350655795,1738035043018,-153.0,0.00017587,2]
[350655796,1738035043027,-153.0,0.00017587,2]
[350655798,1738035043036,-153.0,0.00017587,2]
[350655800,1738035043045,-153.0,0.00017587,2]
[350655802,1738035043054,-153.0,0.00017587,2]
[350655803,1738035043063,-153.0,0.00017591,2]
[350655805,1738035043072,-153.0,0.00017591,2]
[350655807,1738035043081,-153.0,0.00017591,2]
[350655808,1738035043090,-153.0,0.00017591,2]
[350655809,1738035043098,-153.0,0.00017591,2]
[350655810,1738035043107,-153.0,0.00017591,2]
[350655811,1738035043118,-153.0,0.00017591,2]
[350655812,1738035043127,-153.0,0.00017591,2]
[350655813,1738035043136,-153.0,0.00017591,2]
[350655814,1738035043145,-153.0,0.00017591,2]
[350655816,1738035043154,-153.0,0.00017591,2]
[350655817,1738035043163,-153.0,0.00017591,2]
[350655818,1738035043172,-153.0,0.00017591,2]
[350655819,1738035043181,-153.0,0.00017591,2]
[350655821,1738035043190,-153.0,0.00017591,2]
[350655822,1738035043199,-153.0,0.00017591,2]
[350655824,1738035043209,-500.0,0.00017615,2]
[350655826,1738035043218,-562.67,0.00017615,2]
[350655828,1738035043227,-500.0,0.00017615,2]
[350655829,1738035043237,-500.0,0.00017616,2]
[350655830,1738035043246,-500.0,0.00017616,2]
[350655831,1738035043256,-500.0,0.00017616,2]
[350655832,1738035043266,-500.0,0.00017616,2]
[350655833,1738035043275,-500.0,0.00017616,2]
[350655834,1738035043284,-500.0,0.00017616,2]
[350655835,1738035043293,-500.0,0.00017616,2]
[350655836,1738035043303,-512.26783054,0.00017616,2]
[350655837,1738035043312,-512.26096092,0.00017616,2]
[350655838,1738035043321,-513.08212287,0.00017616,2]
[350655839,1738035043331,-500.0,0.00017616,2]
[350655840,1738035043340,-510.39393498,0.00017616,2]
[350655841,1738035043349,-500.0,0.00017616,2]
[350655842,1738035043358,-513.61,0.00017616,2]
[350655843,1738035043367,-500.0,0.00017616,2]
[350655844,1738035043376,-500.0,0.00017616,2]
[350655845,1738035043386,-500.0,0.00017616,2]
[350655846,1738035043395,-510.47655231,0.00017616,2]
[350655847,1738035043404,-500.0,0.00017616,2]
[350655848,1738035043413,-500.0,0.00017616,2]
[350655849,1738035043423,-151.0,0.00017616,2]
[350655851,1738035043432,-500.0,0.00017616,2]
[350655853,1738035043442,-944.87,0.00017616,2]
[350655854,1738035043452,-2408.08,0.00017616,2]
[350655855,1738035043538,-162.805494,0.00017616,2]
[350655856,1738035043558,-162.805494,0.00017616,2]
[350655857,1738035043568,-151.0,0.00017616,2]
[350655858,1738035043577,-500.0,0.00017616,2]
[350655859,1738035043586,-161.723276,0.00017616,2]
[350655860,1738035043595,-500.0,0.00017616,2]
[350655861,1738035043605,-395.511229,0.00017616,2]
[350655862,1738035043614,-395.511229,0.00017616,2]
[350655863,1738035043623,-864.25,0.00017616,2]
[350655864,1738035043632,-597.42,0.00017617,2]
[350655865,1738035043641,-514.36,0.00017617,2]
[350655866,1738035043651,-500.0,0.00017617,2]
[350655867,1738035043660,-500.0,0.00017617,2]
[350655868,1738035043669,-500.0,0.00017617,2]
[350655869,1738035043678,-500.0,0.00017617,2]
[350655870,1738035043688,-500.0,0.00017617,2]
[350655871,1738035043697,-500.0,0.00017617,2]
[350655872,1738035043706,-500.0,0.00017617,2]
[350655873,1738035043715,-500.0,0.00017617,2]
[350655874,1738035043724,-500.0,0.00017617,2]
[350655875,1738035043735,-500.0,0.00017617,2]
[350655876,1738035043744,-151.0,0.00017617,2]
[350655877,1738035043753,-151.0,0.00017617,2]
[350655878,1738035043763,-151.0,0.00017617,2]
[350655879,1738035043773,-151.0,0.00017617,2]
[350655880,1738035043782,-151.0,0.00017617,2]
[350655881,1738035043791,-151.0,0.00017617,2]
[350655882,1738035043801,-151.0,0.00017617,2]
[350655883,1738035043810,-355.333469,0.00017617,2]
[350655884,1738035043819,-355.333469,0.00017617,2]
[350655885,1738035043833,-151.0,0.00017617,2]
[350655887,1738035043842,-254.602324,0.00017617,2]
[350655889,1738035043851,-151.0,0.00017617,2]
[350655891,1738035043861,-254.602324,0.00017617,2]
[350655892,1738035043870,-614.235754,0.00017617,2]
[350655893,1738035043880,-151.0,0.00017617,2]
[350655894,1738035043889,-614.235754,0.00017617,2]
[350655895,1738035043898,-158.534219,0.00017617,2]
[350655896,1738035043908,-151.0,0.00017617,2]
[350655897,1738035043919,-158.534219,0.00017617,2]
[350655898,1738035043928,-151.0,0.00017617,2]
[350655899,1738035043937,-520.0,0.00017618,2]
[350655900,1738035043946,-320.62021184,0.00017618,2]
[350655901,1738035043956,-504.49856839,0.00017618,2]
[350655902,1738035043965,-500.0,0.00017618,2]
[350655903,1738035043975,-500.0,0.00017618,2]
[350655904,1738035043986,-502.98185298,0.00017618,2]
[350655905,1738035043996,-527.16841872,0.00017618,2]
[350655906,1738035044005,-338.41593621,0.00017618,2]
[350655907,1738035044015,-249.48139976,0.00017618,2]
[350655908,1738035044024,-509.49116824,0.00017618,2]
[350655909,1738035044033,-500.0,0.00017713,2]
[350655910,1738035044043,-500.0,0.00017713,2]
[350655911,1738035044052,-500.0,0.00017752,2]
[350655912,1738035044061,-562.67,0.00017752,2]
[350655913,1738035044071,-500.0,0.00017752,2]
[350655914,1738035044080,-500.0,0.00017753,2]
[350655915,1738035044089,-500.0,0.00017753,2]
[350655916,1738035044099,-500.0,0.00017753,2]
[350655917,1738035044108,-500.0,0.00017753,2]
[350655918,1738035044118,-500.0,0.00017753,2]
[350655919,1738035044127,-500.0,0.00017753,2]
[350655920,1738035044138,-500.0,0.00017753,2]
[350655921,1738035044149,-500.0,0.00017753,2]
[350655922,1738035044159,-500.0,0.00017753,2]
[350655923,1738035044168,-513.61,0.00017753,2]
[350655924,1738035044177,-500.0,0.00017753,2]
[350655925,1738035044187,-500.0,0.00017753,2]
[350655926,1738035044196,-500.0,0.00017753,2]
[350655927,1738035044206,-500.0,0.00017753,2]
[350655928,1738035044216,-500.0,0.00017753,2]
[350655929,1738035044225,-500.0,0.00017753,2]
[350655930,1738035044237,-944.87,0.00017753,2]
[350655931,1738035044247,-2408.08,0.00017753,2]
[350655932,1738035044257,-500.0,0.00017753,2]
[350655933,1738035044267,-510.83,0.00017753,2]
[350655934,1738035044277,-151.0,0.00017753,2]
[350655935,1738035044287,-864.25,0.00017753,2]
[350655936,1738035044296,-151.0,0.00017753,2]
[350655937,1738035044306,-151.0,0.00017753,2]
[350655938,1738035044315,-500.0,0.00017754,2]
[350655939,1738035044324,-242.03,0.00017754,2]
[350655940,1738035044334,-393.13,0.00017754,2]
[350655941,1738035044343,-500.0,0.00017754,2]
[350655942,1738035044353,-500.0,0.00017754,2]
[350655943,1738035044362,-500.0,0.00017755,2]